Cogmind - Beta 14 @@@ ROGUE MODE // 2024.11.01 @ 07:32:09 Player: Zaltark Result: Destroyed by 53-ADO(R) with Subdweller Beam Cannon Performance ------------- Evolutions (0) 0 Regions Visited (3) 600 Robots Destroyed (10) 50 Value Destroyed (274) 274 Prototype IDs (0) 0 Alien Tech Used (0) 0 Bonus (0) 0 TOTAL SCORE: 924 Bonus ------- None Cogmind --------- Core Integrity 0/250 Matter 294/300 Energy 99/100 System Corruption 0% Temperature Cool (9) Movement Treading (160) Location -10/Subcaves Parts ------- > --- POWER (1) -------- (None) > --- PROPULSION (2) --- Light Treads > --- UTILITY (2) ------ (None) > --- WEAPON (2) ------- Subdweller Machine Gun > --- INVENTORY (5) ---- Huge Storage Unit Medium Matter Pod (100) Small Laser Datajack Peak State ------------ > --- POWER ------------ Ion Engine > --- PROPULSION ------- Light Treads Light Treads > --- UTILITY ---------- Structural Scanner Light Armor Plating > --- WEAPON ----------- Particle Gun Subdweller Machine Gun > --- INVENTORY -------- Huge Storage Unit Medium Matter Pod Medium Laser Small Laser Datajack [Rating: 9] Favorites ----------- Power Ion Engine Engine Ion Engine Propulsion Light Treads Treads Light Treads Wheel Wheel Utility Structural Scanner Device Structural Scanner Storage Medium Matter Pod Protection Light Armor Plating Weapon Light Assault Rifle Energy Gun Particle Gun Ballistic Gun Light Assault Rifle Build | -11 -10 -10 -10 ------- Run | Yrd Mat Min Sub Slots Evolved . | . . . . Power . | . . . . Propulsion . | . . . . Utility . | . . . . Weapon . | . . . . Parts Attached 17 | 5 8 3 1 Power 2 | 1 1 . . Engine 2 | 1 1 . . Core . | . . . . Reactor . | . . . . Propulsion 4 | 2 2 . . Treads 2 | . 2 . . Leg . | . . . . Wheel 2 | 2 . . . Hover . | . . . . Flight . | . . . . Utility 4 | . 3 1 . Device 1 | . 1 . . Storage 2 | . 2 . . Processor . | . . . . Hackware . | . . . . Protection 1 | . . 1 . Artifact . | . . . . Weapon 7 | 2 2 2 1 Energy Gun 4 | 1 1 2 . Energy Cannon . | . . . . Ballistic Gun 3 | 1 1 . 1 Ballistic Cannon . | . . . . Launcher . | . . . . Special Weapon . | . . . . Impact Weapon . | . . . . Slashing Weapon . | . . . . Piercing Weapon . | . . . . Special Melee Weapon . | . . . . Unidentified Prototypes . | . . . . Parts Lost 7 | . 2 . 5 Power 1 | . . . 1 Propulsion 1 | . . . 1 Utility 2 | . . . 2 Weapon 3 | . 2 . 1 Highest Loss Streak 4 | . 1 . 4 To Critical Strikes . | . . . . Average Slot Usage (%) 91 | . 78 100 94 Engine 13 | . 14 14 13 Treads 27 | . 27 28 28 Device 10 | . 3 14 13 Storage 2 | . 4 . . Protection 7 | . . 13 10 Energy Gun 18 | . 11 24 14 Ballistic Gun 9 | . 15 3 12 Peak Build Rating 9 | 5 7 8 9 Average Rating 6 | 3 5 7 8 On Entrance 5 | . 5 7 8 Naked Turns . | . . . . Heaviest Build 88 | 6 88 14 16 Greatest Support 40 | 20 40 40 40 Greatest Overweight (x) 2 | . 2 . . Average Overweight (x) . | . . . . Largest Inventory Capacity 25 | 5 25 5 5 Average Capacity 5 | 5 6 5 5 Most Carried 5 | 5 5 5 5 Average Carried 2 | 2 1 3 4 Final Capacity 5 | 5 5 5 5 Final Carried 4 | 4 2 4 4 Class Distribution -------------------- 100% | Mutant Dominant Class ---------------- Mutant | -10/Materials Mutant | -10/Mines Mutant | -10/Subcaves Resources | -11 -10 -10 -10 ----------- Run | Yrd Mat Min Sub Matter Collected 495 | 262 68 149 16 Remotely . | . . . . Salvage Created 309 | 53 129 90 37 Parts 18 | 5 9 2 2 Haulers Intercepted . | . . . . Recyclers Shooed . | . . . . Parts Field Recycled . | . . . . Retrieved Matter . | . . . . Parts Self-Destructed . | . . . . Prevented . | . . . . Kills | -11 -10 -10 -10 ------- Run | Yrd Mat Min Sub Combat Hostiles Destroyed 8 | 1 4 2 1 Guns 8 | 1 4 2 1 Classes Destroyed 5 | 2 2 . 1 Worker 1 | . 1 . . Tunneler 1 | 1 . . . Swarmer 2 | . 2 . . Grunt 5 | 1 2 2 . Subdweller 1 | . . . 1 Best Kill Streak 3 | 2 3 2 1 Combat Bots Only 2 | 1 2 2 1 Max Kills in Single Turn 1 | 1 1 1 1 Gunslinging . | . . . . Exploded . | . . . . Melee . | . . . . Uniques/NPCs Destroyed . | . . . . Combat | -11 -10 -10 -10 -------- Run | Yrd Mat Min Sub Hostile Shots Fired 85 | 7 31 10 37 Missed 33 | 4 9 5 15 Damage Taken 891 | 34 273 67 517 Core 253 | . 33 30 190 Absorbed by Shields . | . . . . Core Remaining (%) 100 | 100 . . . Volleys Fired 50 | 12 12 13 13 Largest 2 | 2 2 2 2 Hottest 115 | 60 60 115 95 Shots Fired 88 | 24 18 26 20 Gun 88 | 24 18 26 20 Cannon . | . . . . Launcher . | . . . . Special . | . . . . Kinetic 44 | 12 12 7 13 Thermal 26 | . . 19 7 Explosive . | . . . . Electromagnetic 18 | 12 6 . . Robot Hit Streak 13 | 5 13 6 5 Robot Miss Streak 3 | 3 1 1 1 Penetration Max . | . . . . Secondary Targets 2 | . 1 . 1 Max Gunslinging Chain 1 | . 1 . 1 Shots Hit Robots 47 | 12 16 9 10 Core Hits 19 | 4 8 5 2 Critical Kills . | . . . . Critical Parts Destroyed . | . . . . Critical Strikes 1 | . 1 . . Corrupt 1 | . 1 . . Melee Attacks . | . . . . Impact . | . . . . Slashing . | . . . . Piercing . | . . . . Sneak Attacks . | . . . . Combat Hostiles . | . . . . Follow-up Attacks . | . . . . Damage Inflicted 639 | 134 198 104 203 Guns 599 | 134 158 104 203 Cannons . | . . . . Explosions 40 | . 40 . . Melee . | . . . . Ramming . | . . . . Kinetic 342 | 51 101 15 175 Thermal 157 | . 40 89 28 Explosive . | . . . . Electromagnetic 140 | 83 57 . . Impact . | . . . . Slashing . | . . . . Piercing . | . . . . Highest Corruption . | . . . . Average Corruption . | . . . . Corruption Purged . | . . . . Corruption Blocked . | . . . . Overload Shots . | . . . . Overflow Damage 15 | . 15 . . Projectiles . | . . . . Explosions 15 | . 15 . . Melee . | . . . . Knockbacks . | . . . . Impact . | . . . . Kinetic . | . . . . Secondary . | . . . . Self-Inflicted Damage 34 | . 34 . . Shots 1 | . 1 . . Rammed . | . . . . Targets Rammed . | . . . . Kicked . | . . . . Crushed . | . . . . Highest Temperature 378 | 58 49 378 . Average Temperature 99 | 28 18 154 . Received Heat Transfer 267 | 18 123 36 90 Siege Activations . | . . . . Robots Corrupted . | . . . . Combat Hostiles . | . . . . Parts Fried . | . . . . Impact Corruptions . | . . . . Robots Melted . | . . . . Combat Hostiles . | . . . . Parts Melted 1 | . . 1 . Heat Transferred 433 | . 100 259 74 Parts Sabotaged . | . . . . Parts Stolen . | . . . . Parts Stripped . | . . . . Power Chain Reactions 1 | . 1 . . Alert | -11 -10 -10 -10 ------- Run | Yrd Mat Min Sub Peak Influence 91 | 25 62 91 . Initial 16 | . 16 11 . Average 35 | 4 32 46 . Maximum Alert Level . | . . . . Low Security (%) 100 | 100 100 100 . Level 1 . | . . . . Level 2 . | . . . . Level 3 . | . . . . Level 4 . | . . . . Level 5 . | . . . . High Security . | . . . . Max Security . | . . . . Squads Dispatched 1 | . 1 . . Investigation 1 | . 1 . . Extermination . | . . . . Reinforcement . | . . . . Assault . | . . . . Garrison . | . . . . Intercept . | . . . . Searches Triggered . | . . . . Construction Impeded . | . . . . Haulers Reinforced . | . . . . Active Scanning Responses . | . . . . Cargo Convoy Interrupts . | . . . . Stealth | -11 -10 -10 -10 --------- Run | Yrd Mat Min Sub Distress Signals . | . . . . Communications Jammed . | . . . . Distress Signals . | . . . . Times Spotted 21 | 1 10 2 8 Peak Tracking Total 6 | 1 5 2 6 Tactical Retreats 1 | . 1 . . Traps | -11 -10 -10 -10 ------- Run | Yrd Mat Min Sub Traps Triggered . | . . . . Indirectly . | . . . . Trap Hack Attempts . | . . . . Triggered . | . . . . Disarmed . | . . . . Reprogrammed . | . . . . Reused . | . . . . Traps Extracted . | . . . . Installed . | . . . . Triggered . | . . . . Machines | -11 -10 -10 -10 ---------- Run | Yrd Mat Min Sub Machines Disabled 1 | . . 1 . Max in Single Turn 1 | . . 1 . Machines Repaired . | . . . . Machines Dismantled . | . . . . Machines Sabotaged . | . . . . Overloaded Fab Kills . | . . . . Hacking | -11 -10 -10 -10 --------- Run | Yrd Mat Min Sub Machines Accessed 4 | . 4 . . Terminals 4 | . 4 . . Fabricators . | . . . . Repair Stations . | . . . . Recycling Units . | . . . . Scanalyzers . | . . . . Garrison Access . | . . . . Total Hacks 14 | . 14 . . Successful 6 | . 6 . . Failed 8 | . 8 . . Catastrophic . | . . . . Database Lockouts . | . . . . Manual . | . . . . Terminals 14 | . 14 . . Fabricators . | . . . . Repair Stations . | . . . . Recycling Units . | . . . . Scanalyzers . | . . . . Garrison Access . | . . . . Terminal Hacks 6 | . 6 . . Record 3 | . 3 . . Robot Analysis 1 | . 1 . . Alert Level 1 | . 1 . . Unreport Threat 1 | . 1 . . Fabricator Hacks . | . . . . Repair Station Hacks . | . . . . Recycling Unit Hacks . | . . . . Scanalyzer . | . . . . Garrison Access Hacks . | . . . . Unauthorized Hacks . | . . . . Terminals . | . . . . Fabricators . | . . . . Repair Stations . | . . . . Recycling Units . | . . . . Scanalyzers . | . . . . Garrison Access . | . . . . Data Cores Recovered . | . . . . Used . | . . . . Hacking Detections 4 | . 4 . . Full Trace Events 1 | . 1 . . Feedback Events . | . . . . Feedback Blocked . | . . . . Robot Schematics Acquired . | . . . . Robots Built . | . . . . Authchips . | . . . . Time . | . . . . Total Robot Build Rating . | . . . . Part Schematics Acquired . | . . . . Parts Built . | . . . . Authchips . | . . . . Time . | . . . . Total Part Build Rating . | . . . . Parts Repaired . | . . . . Time . | . . . . Parts Recycled . | . . . . Recycled Matter . | . . . . Retrieved Matter . | . . . . Retrieved Components . | . . . . Parts Scanalyzed . | . . . . Part Schematics Acquired . | . . . . Parts Damaged . | . . . . Bothacking | -11 -10 -10 -10 ------------ Run | Yrd Mat Min Sub Used RIF Installer . | . . . . Robots Hacked . | . . . . Non-combat . | . . . . Combat . | . . . . Robot Hacks Applied . | . . . . Relay Couplers Released . | . . . . Fabnet Peak Effective % . | . . . . Robots Rewired . | . . . . Allies Hacked . | . . . . Hacks Repelled . | . . . . Allies | -11 -10 -10 -10 -------- Run | Yrd Mat Min Sub Total Allies . | . . . . Largest Group . | . . . . Highest-Rated Group . | . . . . Highest-Rated Ally . | . . . . Total Orders . | . . . . Ally Attacks . | . . . . Total Damage . | . . . . Kills . | . . . . Allies Corrupted . | . . . . Allies Melted . | . . . . Intel | -11 -10 -10 -10 ------- Run | Yrd Mat Min Sub Robot Analysis Total 1 | . 1 . . Derelict Logs Recovered . | . . . . Drone Launches . | . . . . Drone Recoveries . | . . . . Exploration | -11 -10 -10 -10 ------------- Run | Yrd Mat Min Sub Turns Passed 1536 | 165 492 641 238 Spaces Moved 932 | 156 278 371 127 Core 39 | 34 5 . . Treads 759 | . 261 371 127 Legs . | . . . . Wheels 134 | 122 12 . . Hover . | . . . . Flight . | . . . . Fastest Speed 50 | 50 80 160 160 Average Speed 145 | 73 159 160 160 Slowest Speed 320 | 80 320 160 160 Overloaded Moves . | . . . . Propulsion Burnouts . | . . . . Robots Hopped . | . . . . Cave-ins Triggered . | . . . . Exploration Rate (%) 27 | 7 36 60 7 Regions Visited 3 Branch Regions 2 Pre-discovered Areas . | . . . . Known Exits Taken . | . . . . Unknown Exits Taken 3 | 1 1 1 . Scrap Searched 2 | . . 1 1 Spaces Dug . | . . . . Terrain Destroyed 2 | . 2 . . Melee . | . . . . Projectile . | . . . . AOE 2 | . 2 . . Terrain Rammed . | . . . . Walls Destroyed . | . . . . Machines Disabled . | . . . . Actions | -11 -10 -10 -10 --------- Run | Yrd Mat Min Sub Total 1037 | 185 314 395 143 Wait . | . . . . Move 929 | 155 277 370 127 Hop . | . . . . Pick Up 26 | 11 9 5 1 Fast Attach . | . . . . Attach 12 | 5 5 2 . Detach 2 | . 1 1 . Swap 5 | . 3 1 1 Drop 13 | 2 7 3 1 Fire 50 | 12 12 13 13 Melee . | . . . . Ram . | . . . . Kick . | . . . . Crush . | . . . . Escape Stasis . | . . . . Rewire . | . . . . Trap . | . . . . Miscellaneous . | . . . . Route ------- -11/Scrapyard -10/Materials -10/Mines (discovered 2 exits: [*Exi] / [*Sub]) -10/Subcaves History --------- Turn | Location | Event 2 | -11/Scrapyard | Met Revision 17 118 | -11/Scrapyard | Discovered new exit (range 8) 166 | -11/Scrapyard | Entered Materials 308 | -10/Materials | Build established: Mutant 639 | -10/Materials | Discovered new exit (range 12) 658 | -10/Materials | Entered Mines 838 | -10/Mines | Deemed a non-threat by the Exiles lab entrance 838 | -10/Mines | Discovered new exit (range 6) 950 | -10/Mines | Found a hidden stash of uninstalled traps 1281 | -10/Mines | Discovered new exit (range 9) 1299 | -10/Mines | Entered Subcaves 1443 | -10/Subcaves | Ambushed by swarm of Subdwellers 1507 | -10/Subcaves | Lost 3 allies 1528 | -10/Subcaves | Core integrity fell below 50% 1536 | -10/Subcaves | Core integrity fell below 20% 1537 | -10/Subcaves | Destroyed by 53-ADO(R) with Subdweller Beam Cannon Last Messages --------------- MR-SP8(R) emerges from the Twisted Machinery. Q4-TI4(g): "Sorry we're late! Had another grouchy Sub to deal with. Who's the new fellow?" K5-W5E(R) destroyed. Switching to secondary target: MR-SP8(R). KK-CV5(R) emerges from the Twisted Machinery. QW-CWT(R) emerges from the Twisted Machinery. KR-X1J(R) emerges from concealment. 0S-N5O(R) destroyed. Q4-TI4(g) destroyed. 7X-FS3(g) destroyed. Lgt. Armor Plating destroyed. GC-L3X(R) affixes Scrap Shield Fragment to Scrap Shield. Ion Engine destroyed. Particle Gun destroyed. Structural Scanner destroyed. Lgt. Treads destroyed. [Achievement: First Step to Greatness] Map ----- +----------------------------------------------------+ | ?????????????????????????????????????????????????? | | ?????????????????????????????????????????????????? | | ?????????????????????????????????????????????????? | | ?????????????????????????????????????????????????? | | ?????????????????????????????????????????????????? | | ?????????????????????????????????????????????????? | | ?????????????????????????????????????????????????? | | ?????????????????????????????????????????????????? | | ?????????????????????????????????????????????????? | | ?????????????????????????????????????????????????? | | ?????????????????????????????????????????????????? | | ???????????????????## ??????????????????????????? | | ???????????????????## ##????????????????????????? | | ??????????????????### ##????????????????????????? | | ??????????????????### #????????????????????????? | | ????????????????#### ##???????????????????????? | | ????????????????? ### #####?#####??????????????? | | ?????????????????? ################????????? | | ??????????????????? ##### #############???? | | ??????????????????? ;# # ########??? | | ???????????????????## ### ## #[####?? | | ??????????????## ? ## ###### &#!# ###?? | | ??????????????## ?### ####### %##" ##?? | | ??????????????## # ######### # # ## ??? | | ??????????????## ###########" #### | | ??????????????## @ ##### ## # ## ##### | | ??????????????##### ###### # ## | | ????????????????### ##; R##### # ##? | | ?????????????????## ######RR ### ####? | | ?????????????????# ??######R ### ###### | | ???????????????????????##### R #### #### | | ??????????????????????### #####" ## | | ??????????????????????## ##### " ##### | | ???????????????????### ######## ## ### | | ???????????????????## ###?######## ##? | | ???????????????????"## ###????####### ##? | | ??????????????????? ### ### ??##### ### ####? | | ????????????????????######## ###"" ## ###### | | ?????????????????????###### """"" ###### | | ?????????????????????????## " """"" ## | | ???????????????????????????? "" "##### | | ????????????????????????????##" ???####### #### | | ????????????????????????????###????????########### | | ????????????????????????????????????????########## | | ?????????????????????????????????????????????????? | | ?????????????????????????????????????????????????? | | ?????????????????????????????????????????????????? | | ?????????????????????????????????????????????????? | | ?????????????????????????????????????????????????? | | ?????????????????????????????????????????????????? | +----------------------------------------------------+ Best States ------------- Heat Dissipation 25 Energy Generation 10 Energy Capacity 250 Matter Stores 341 Matter Capacity 400 Sight Range 16 Terrain Scan Density 10 Armor Coverage 150 Evasion (%) 50 Recoil Reduction 2 Item Schematics ----------------- None Robot Schematics ------------------ None Fabricated ------------ Nothing Alien Tech Used ----------------- None Achievements -------------- Crack Shot Everything Is Under Control First Step to Greatness One Hack Too Far Challenges ------------ None Game ------ Seed ArmorFlightDisintegrator Manual? 0 Play Time 00:24:09 Cumulative 0.3 hours Start 2024.11.01 @ 07:10:04 End 2024.11.01 @ 07:32:09 Sessions 1 Manual Loads 0 Difficulty Rogue Special Mode None Game No. 1 Rogue 1 Adventurer 0 Explorer 0 Win Type - Total 0 Types 0/0/0/0/0/0/0/0/0 Lore% 0 Gallery% 1 Achievement% 2 Wizard Run 0 Options --------- Layout 1 ASCII 0 Keyboard 0 Movement Arrows Keybinds 0 Fullscreen 1 Font 24/X11 Map View 50x35 Zoom Use 0% Tactical HUD 0 Map Filters NONE Filters NONE Steam 1 RUN: 58754c1c-1629-47fb-ab1c-682c374c2908